fUSD/lending_fUSD_20260103
["ID","MTS","AMOUNT","RATE_DAILY","PERIOD"]
[400381716,1767475840109,-334.1590883,0.00036563,15]
[400381717,1767475840119,-184.85778751,0.00036563,15]
[400381718,1767475840129,-463.83410206,0.00036563,15]
[400381719,1767475840139,-500.0,0.00036563,15]
[400381720,1767475840148,-500.0,0.00036563,15]
[400381721,1767475840158,-500.0,0.00036563,15]
[400381722,1767475840168,-500.0,0.00036563,15]
[400381723,1767475840177,-500.0,0.00036563,15]
[400381724,1767475840187,-500.0,0.00036563,15]
[400381725,1767475840196,-500.0,0.00036563,15]
[400381726,1767475840206,-500.0,0.00036563,15]
[400381727,1767475840215,-5000.0,0.00036564,2]
[400381728,1767475840225,-1952.93,0.00036621,120]
[400381729,1767475840235,-249.25,0.00036667,30]
[400381730,1767475840245,-163.82137788,0.00037,60]
[400381731,1767475840255,-3015.66,0.00037067,2]
[400381732,1767475840265,-2373.03,0.00037067,2]
[400381733,1767475840275,-8615.84,0.00037067,2]
[400381734,1767475840284,-344.6283,0.00037156,2]
[400381735,1767475840295,-2500.0,0.00037319,2]
[400381736,1767475840305,-423.3,0.00037319,14]
[400381737,1767475840314,-1914.07540686,0.00037319,2]
[400381738,1767475840324,-1000.0,0.0003732,2]
[400381739,1767475840333,-511.13510878,0.00037355,2]
[400381740,1767475840343,-414.41329787,0.00037356,2]
[400381741,1767475840353,-818.17,0.00037409,3]
[400381742,1767475840363,-288.33318579,0.00037418,15]
[400381743,1767475840374,-500.0,0.00037418,60]
[400381744,1767475840384,-500.0,0.00037418,120]
[400381746,1767475840394,-500.0,0.00037418,2]
[400381748,1767475840404,-500.0,0.00037418,120]
[400381750,1767475840413,-500.0,0.00037418,30]
[400381752,1767475840423,-500.0,0.00037418,120]
[400381754,1767475840433,-420.33154816,0.00037418,120]
[400381756,1767475840442,-500.0,0.00037418,15]
[400381758,1767475840451,-3055.81845383,0.00037419,2]
[400381760,1767475840463,-152159.67473717,0.00037419,2]
[400381762,1767475840474,-1288.8599901,0.00037419,2]
[400381764,1767475840484,-522.94551231,0.00037419,120]
[400381766,1767475840493,-500.0,0.00037419,120]
[400381768,1767475840503,-500.0,0.00037419,120]
[400381771,1767475840513,-500.0,0.00037419,120]
[400381774,1767475840522,-321.45865313,0.00037419,120]
[400381777,1767475840531,-500.0,0.00037419,60]
[400381780,1767475840541,-515.2554458,0.00037419,60]
[400381782,1767475840551,-500.0,0.00037419,120]
[400381784,1767475840560,-500.0,0.00037419,120]
[400381786,1767475840570,-500.0,0.00037419,120]
[400381787,1767475840579,-500.0,0.00037419,30]
[400381788,1767475840590,-500.0,0.00037419,30]
[400381789,1767475840600,-500.0,0.00037419,120]
[400381790,1767475840610,-500.0,0.00037419,120]
[400381791,1767475840619,-1000.0,0.0003742,30]
[400381792,1767475840628,-423.3,0.00037593,14]
[400381793,1767475840639,-500.0,0.00037608,50]
[400381794,1767475840649,-242.8546412,0.00037608,50]
[400381795,1767475840658,-500.0,0.00037608,50]
[400381796,1767475840668,-150.0,0.00037608,50]
[400381797,1767475840678,-500.0,0.00037608,50]
[400381798,1767475840687,-500.0,0.00037608,50]
[400381799,1767475840697,-500.0,0.00037608,50]
[400381800,1767475840706,-150.0,0.00037608,50]
[400381801,1767475840716,-150.0,0.00037608,50]
[400381802,1767475840725,-150.0,0.00037608,50]
[400381803,1767475840735,-150.0,0.00037608,50]
[400381804,1767475840748,-500.0,0.00037608,50]
[400381805,1767475840758,-500.0,0.00037608,50]
[400381806,1767475840767,-500.0,0.00037608,50]
[400381807,1767475840777,-150.0,0.00037608,50]
[400381808,1767475840787,-500.0,0.00037608,50]
[400381809,1767475840797,-500.0,0.00037608,50]
[400381810,1767475840807,-200.0,0.00037608,50]
[400381811,1767475840816,-155.55230224,0.00037608,50]
[400381812,1767475840826,-169.52486483,0.00037608,50]
[400381813,1767475840836,-284.46108275,0.00037608,50]
[400381814,1767475840846,-150.0,0.00037608,50]
[400381815,1767475840857,-500.0,0.00037608,50]
[400381816,1767475840866,-212.43564879,0.00037608,50]
[400381817,1767475840876,-150.0,0.00037608,50]
[400381818,1767475840886,-150.0,0.00037608,2]
[400381819,1767475840896,-1015.80583302,0.0003772,2]
[400381820,1767475840905,-500.0,0.00037745,50]
[400381821,1767475840915,-500.0,0.00037745,50]
[400381822,1767475840925,-151.43121064,0.00037745,50]
[400381823,1767475840935,-500.0,0.00037745,50]
[400381824,1767475840945,-500.0,0.00037745,50]
[400381825,1767475840956,-500.0,0.00037745,50]
[400381826,1767475840969,-154.34892106,0.00037745,50]
[400381827,1767475840978,-150.0,0.00037745,50]
[400381828,1767475840988,-152.55101661,0.00037745,50]
[400381829,1767475840997,-151.24249102,0.00037745,50]
[400381830,1767475841007,-505.05471276,0.00037745,50]
[400381831,1767475841017,-500.0,0.00037745,50]
[400381832,1767475841026,-500.0,0.00037745,50]
[400381833,1767475841036,-150.0,0.00037745,50]
[400381834,1767475841046,-500.0,0.00037745,50]
[400381835,1767475841055,-500.0,0.00037745,50]
[400381836,1767475841064,-150.0,0.00037745,50]
[400381837,1767475841074,-500.0,0.00037745,50]
[400381838,1767475841084,-151.0,0.00037745,31]
[400381839,1767475841094,-169.90099311,0.0003782,2]
[400381840,1767475841103,-151.0,0.00037821,31]
[400381841,1767475841113,-151.0,0.00037821,7]
[400381842,1767475841122,-166.030149,0.00037821,31]
[400381843,1767475841132,-151.0,0.00037821,31]
[400381844,1767475841142,-166.66,0.00037821,30]
[400381845,1767475841152,-423.3,0.00037867,14]
[400381846,1767475841162,-500.0,0.00037882,50]
[400381847,1767475841171,-500.0,0.00037882,50]
[400381848,1767475841181,-500.0,0.00037882,50]
[400381849,1767475841190,-500.0,0.00037882,50]
[400381850,1767475841200,-500.0,0.00037882,50]
[400381851,1767475841209,-150.0,0.00037882,50]
[400381852,1767475841219,-170.91875403,0.00037882,50]
[400381853,1767475841229,-500.0,0.00037882,50]
[400381854,1767475841239,-154.24734842,0.00037882,50]
[400381855,1767475841249,-251.69569341,0.00037882,50]
[400381856,1767475841259,-195.85749303,0.00037882,50]
[400381857,1767475841269,-150.0,0.00037882,50]
[400381858,1767475841279,-210.01519541,0.00037882,50]
[400381859,1767475841291,-289.98480459,0.00037882,50]
[400381860,1767475841301,-2001.65299715,0.0003792,95]
[400381861,1767475841312,-617.33224784,0.0003792,95]
[400381862,1767475841324,-1036.0,0.0003792,95]
[400381863,1767475841335,-198.25583501,0.0003792,95]
[400381864,1767475841345,-3814.61813783,0.0003792,95]
[400381865,1767475841356,-38.62294217,0.0003792,95]
[400381866,1767475841366,-3853.24107,0.0003792,95]
[400381867,1767475841376,-3853.24108,0.0003792,95]
[400381868,1767475841385,-3853.24108,0.0003792,95]
[400381869,1767475841396,-3853.24108,0.0003792,95]
[400381870,1767475841405,-3853.24107,0.0003792,95]
[400381871,1767475841416,-3853.24107,0.0003792,95]
[400381872,1767475841426,-3853.24107,0.0003792,95]
[400381873,1767475841436,-3853.24107,0.0003792,95]
[400381874,1767475841446,-151.0,0.0003792,31]
[400381875,1767475841456,-151.0,0.0003792,31]
[400381876,1767475841466,-1914.07540681,0.0003795,2]
[400381877,1767475841475,-500.0,0.00038019,50]
[400381878,1767475841485,-537.75100293,0.00038019,50]
[400381879,1767475841496,-510.28208754,0.00038019,50]
[400381880,1767475841505,-500.0,0.00038019,50]
[400381881,1767475841514,-152.37411975,0.00038019,50]
[400381882,1767475841524,-150.0,0.00038019,50]
[400381883,1767475841533,-500.0,0.00038019,50]
[400381884,1767475841543,-186.62731333,0.00038019,50]
[400381885,1767475841553,-500.0,0.00038019,50]
[400381886,1767475841563,-744.125,0.00038124,2]
[400381887,1767475841572,-423.3,0.00038141,14]
[400381888,1767475841582,-104.27830683,0.00038156,50]
[400381892,1767475843638,-395.72169317,0.00038156,50]
[400381893,1767475843649,-500.0,0.00038156,50]
[400381894,1767475843660,-150.0,0.00038156,50]
[400381895,1767475843670,-500.0,0.00038156,50]
[400381896,1767475843679,-500.0,0.00038156,50]
[400381897,1767475843689,-4451.14455791,0.00038274,2]
[400381898,1767475843699,-500.0,0.00038293,50]
[400381899,1767475843708,-500.0,0.00038293,50]
[400381900,1767475843718,-250.0,0.00038293,50]
[400381901,1767475843727,-500.0,0.00038293,50]
[400381902,1767475843738,-500.0,0.00038293,50]
[400381903,1767475843751,-151.0,0.00038356,120]
[400381904,1767475843761,-151.0,0.00038356,120]
[400381905,1767475843771,-201.645314,0.00038356,120]
[400381906,1767475843783,-151.0,0.00038356,120]
[400381907,1767475843793,-155.89541,0.00038356,120]
[400381908,1767475843803,-151.0,0.00038356,120]
[400381909,1767475843814,-151.0,0.00038356,120]
[400381910,1767475843824,-151.0,0.00038356,120]
[400381911,1767475843834,-165.253905,0.00038356,120]
[400381912,1767475843844,-151.0,0.00038356,120]
[400381913,1767475843854,-33.73622786,0.00038356,120]
[400381914,1767475843867,-117.26377214,0.00038356,120]
[400381915,1767475843877,-151.0,0.00038356,120]
[400381916,1767475843887,-247.638711,0.00038356,120]
[400381917,1767475843896,-151.0,0.00038356,120]
[400381918,1767475843906,-247.638711,0.00038356,120]
[400381919,1767475843915,-247.638711,0.00038356,120]
[400381920,1767475843925,-151.0,0.00038356,120]
[400381921,1767475843935,-247.638711,0.00038356,120]
[400381922,1767475843944,-151.0,0.00038356,120]
[400381923,1767475843954,-151.0,0.00038356,120]
[400381924,1767475843964,-253.774244,0.00038356,120]
[400381925,1767475843974,-168.240639,0.00038356,120]
[400381926,1767475843983,-151.0,0.00038356,120]
[400381927,1767475843993,-151.0,0.00038356,120]
[400381928,1767475844003,-288.245417,0.00038356,120]
[400381929,1767475844012,-151.0,0.00038356,120]
[400381930,1767475844022,-151.0,0.00038356,120]
[400381931,1767475844032,-176.23486,0.00038356,120]
[400381932,1767475844043,-174.696257,0.00038356,120]
[400381933,1767475844054,-174.696257,0.00038356,120]
[400381934,1767475844065,-174.696257,0.00038356,120]
[400381935,1767475844075,-174.696257,0.00038356,120]
[400381936,1767475844085,-423.33,0.00038415,30]
[400381937,1767475844095,-500.0,0.0003843,50]
[400381938,1767475844105,-500.0,0.0003843,50]
[400381939,1767475844116,-500.0,0.0003843,50]
[400381940,1767475844126,-500.0,0.0003843,50]
[400381941,1767475844135,-166.7199153,0.00038489,2]
[400381942,1767475844145,-152.13369377,0.00038516,2]
[400381943,1767475844155,-500.0,0.00038567,50]
[400381944,1767475844165,-500.0,0.00038567,50]
[400381945,1767475844175,-556.55432794,0.00038567,50]
[400381946,1767475844186,-500.0,0.00038567,50]
[400381947,1767475844195,-166.66,0.0003857,30]
[400381948,1767475844205,-1914.07540681,0.00038581,2]
[400381949,1767475844215,-150.0,0.000386,30]
[400381950,1767475844224,-500.0,0.00038704,50]
[400381951,1767475844234,-500.0,0.00038704,50]
[400381952,1767475844243,-500.0,0.00038704,50]
[400381953,1767475844253,-198.0,0.00038796,5]
[400381954,1767475844263,-500.99060707,0.00038841,50]
[400381955,1767475844273,-500.0,0.00038841,50]
[400381956,1767475844282,-402.052521,0.00038841,50]
[400381957,1767475844292,-2160.0,0.00038947,5]
[400381962,1767475844475,-285.7342369,0.00038978,50]
[400381963,1767475844488,-169.9009931,0.00039115,2]
[400381964,1767475844498,-1914.07540681,0.00039213,2]
[400381965,1767475844508,-1000.0,0.00039266,2]
[400381966,1767475844518,-166.66,0.00039319,30]
[400381967,1767475844527,-151.0,0.0003939,120]
[400381968,1767475844537,-153.82,0.00039445,2]
[400381969,1767475844547,-999.0,0.00039482,3]
[400381970,1767475844556,-174.26,0.00039654,2]
[400381971,1767475844566,-1914.07540681,0.00039844,15]
[400381972,1767475844576,-750.55,0.00039895,120]
[400381973,1767475844585,-253.0,0.0004,30]
[400381974,1767475844595,-500.0,0.00040073,5]
[400381975,1767475844604,-554.0,0.00040189,10]
[400381976,1767475844614,-388.37648035,0.0004041,2]
[400381977,1767475844624,-169.9009931,0.0004041,28]
[400381978,1767475844635,-1914.07540681,0.00040475,15]
[400381979,1767475844644,-166.81,0.00040928,2]
[400381980,1767475844653,-249.25,0.00040992,120]
[400381981,1767475844664,-253.0,0.00041,34]
[400381982,1767475844674,-564.53796371,0.00041095,120]
[400381983,1767475844683,-999.0,0.00041095,120]
[400381984,1767475844693,-213.72961384,0.00041096,2]
[400381985,1767475844702,-415.0,0.00041096,104]
[400381986,1767475844712,-151.0,0.00041096,120]
[400381987,1767475844721,-151.0,0.00041096,120]
[400381988,1767475844731,-247.638711,0.00041096,120]
[400381989,1767475844743,-151.0,0.00041096,120]
[400381990,1767475844752,-247.638711,0.00041096,120]
[400381991,1767475844762,-247.638711,0.00041096,120]
[400381992,1767475844771,-151.0,0.00041096,120]
[400381993,1767475844781,-247.638711,0.00041096,120]
[400381994,1767475844791,-151.0,0.00041096,120]
[400381995,1767475844801,-151.0,0.00041096,120]
[400381996,1767475844810,-161.497906,0.00041106,120]
[400381997,1767475844819,-151.0,0.00041106,120]
[400381998,1767475844830,-261.028507,0.00041106,120]
[400381999,1767475844840,-151.0,0.00041106,120]
[400382000,1767475844850,-151.0,0.00041106,120]
[400382001,1767475844860,-174.696257,0.00041106,120]
[400382002,1767475844870,-174.696257,0.00041106,120]
[400382003,1767475844880,-174.696257,0.00041106,120]
[400382004,1767475844896,-174.696257,0.00041106,120]
[400382005,1767475844906,-1914.07540681,0.00041106,15]
[400382006,1767475844924,-1434.0,0.00041274,7]
[400382007,1767475844933,-713.03,0.00041343,120]
[400382008,1767475844943,-518.27850623,0.0004138,30]
[400382009,1767475844952,-168.0,0.00041399,2]
[400382010,1767475844961,-162.74,0.00041552,2]
[400382011,1767475844971,-10441.45653283,0.00041666,60]
[400382012,1767475844980,-151.0,0.00041666,7]
[400382013,1767475844990,-151.0,0.00041666,120]
[400382014,1767475844999,-151.0,0.00041666,120]
[400382015,1767475845008,-259.988925,0.00041666,120]
[400382016,1767475845018,-151.0,0.00041666,120]
[400382017,1767475845027,-151.0,0.00041666,120]
[400382018,1767475845037,-151.0,0.00041666,120]
[400382019,1767475845046,-151.0,0.00041666,120]
[400382020,1767475845056,-151.0,0.00041666,120]
[400382021,1767475845065,-169.9009931,0.00041705,28]
[400382022,1767475845076,-1914.07540681,0.00041738,15]
[400382024,1767475845086,-168.0,0.00041894,2]
[400382026,1767475845096,-153.82,0.0004191,2]
[400382027,1767475845106,-178.61,0.00041923,14]
[400382028,1767475845115,-168.0,0.0004193,2]
[400382029,1767475845125,-168.0,0.00041952,2]
[400382030,1767475845134,-2016.55,0.00042,2]
[400382031,1767475845143,-2016.55,0.00042,2]
[400382032,1767475845153,-2016.55,0.00042,2]
[400382033,1767475845162,-2016.55,0.00042,2]
[400382034,1767475845172,-164.59905843,0.00042,120]
[400382035,1767475845182,-256.01334348,0.00042,4]
[400382039,1767475845225,-619.9830055,0.000385,2]
[400382040,1767475845256,-664.87187408,0.000385,2]
[400382041,1767475845265,-151.14212717,0.00042,4]
[400382043,1767475845997,-305.9321667,0.00042,4]
[400382044,1767475846009,-489.41642455,0.00042,4]
[400382045,1767475846116,-32306.29270205,0.00042,4]
[400382046,1767475846125,-253.0,0.00042,37]
[400382047,1767475846135,-151.0,0.00042,120]
[400382048,1767475846144,-151.0,0.00042,120]
[400382049,1767475846153,-247.638711,0.00042,120]
[400382050,1767475846163,-151.0,0.00042,120]
[400382051,1767475846172,-247.638711,0.00042,120]
[400382052,1767475846181,-247.638711,0.00042,120]
[400382053,1767475846191,-151.0,0.00042,120]
[400382054,1767475846199,-247.638711,0.00042,120]
[400382055,1767475846209,-151.0,0.00042,120]
[400382056,1767475846218,-162.553235,0.00042,120]
[400382057,1767475846228,-168.0,0.00042084,2]
[400382058,1767475846238,-2016.55,0.000421,2]
[400382059,1767475846247,-151.0,0.000421,120]
[400382060,1767475846256,-259.9614,0.000421,120]
[400382061,1767475846266,-174.696257,0.000421,120]
[400382062,1767475846276,-174.696257,0.000421,120]
[400382063,1767475846285,-174.696257,0.000421,120]
[400382064,1767475846296,-174.696257,0.000421,120]
[400382065,1767475846306,-151.0,0.00042158,7]
[400382066,1767475846316,-151.0,0.00042158,120]
[400382067,1767475846325,-151.0,0.00042158,120]
[400382068,1767475846334,-151.0,0.00042158,120]
[400382070,1767475846344,-151.0,0.00042158,120]
[400382071,1767475846353,-151.0,0.00042158,120]
[400382072,1767475846362,-151.0,0.00042158,120]
[400382073,1767475846372,-28270.33928705,0.00042158,2]
[400382074,1767475848298,151.0,0.00030509,2]
[400382075,1767475864825,151.0,0.00032627,2]
[400382076,1767475880876,151.0,0.00031586,2]
[400382077,1767475929609,151.0,0.00030568,2]
[400382078,1767475945741,151.0,0.00030879,2]
[400382079,1767476732149,-250.0,0.00029972,2]
[400382080,1767476732177,-151.0,0.00032585,2]
[400382081,1767476732198,-151.0,0.00033804,2]
[400382082,1767476732219,-150.0,0.00035616,60]
[400382083,1767476732240,-3503.72429647,0.00035888,2]
[400382084,1767476770932,6371.5685,0.00043197,60]
[400382085,1767476845132,-2321.38485878,0.00035888,2]
[400382086,1767476845159,-168.0,0.00036219,7]
[400382087,1767476845185,-273.1107,0.00036463,2]
[400382088,1767476845210,-168.0,0.00036682,2]
[400382089,1767476845236,-168.0,0.00036753,7]
[400382090,1767476845260,-995.1,0.00036868,2]
[400382091,1767476845284,-1000.0,0.0003706,2]
[400382092,1767476845310,-1600.0,0.00037117,3]
[400382093,1767476845336,-168.0,0.00037118,2]
[400382094,1767476845359,-400.0,0.00037249,3]
[400382095,1767476845387,-1724.366,0.0003725,120]
[400382096,1767476845411,-96.1360868,0.00037317,3]
[400382097,1767476947197,-151.0,0.00033936,2]
[400382098,1767476947219,-151.0,0.00033949,2]
[400382099,1767476960354,151.0,0.00033983,2]
[400382100,1767476976735,151.0,0.0003397,2]
[400382102,1767476992900,151.0,0.0003397,2]
[400382103,1767477009692,151.0,0.00034012,2]
[400382104,1767477026109,151.0,0.00034006,2]
[400382110,1767477032041,-166.66,0.00035552,30]
[400382111,1767477032052,-233.34,0.00036019,2]
[400382112,1767477032064,-121.2977,0.00036019,2]
[400382113,1767477032074,-350.3260135,0.00036119,2]
[400382114,1767477032086,-166.66,0.000363,30]
[400382115,1767477032096,-350.32601348,0.00036841,2]
[400382116,1767477032111,-982.87,0.00036985,2]
[400382117,1767477032121,-166.66,0.00037048,30]
[400382118,1767477032130,-1000.0,0.00037319,2]
[400382119,1767477032140,-116.14137199,0.0003733,2]
[400382120,1767477032153,-133.85862801,0.0003733,2]
[400382121,1767477032163,-158.50652217,0.00037364,2]
[400382122,1767477032174,-243.50260892,0.00037398,3]
[400382123,1767477032186,-956.49739108,0.00037398,3]
[400382124,1767477032195,-324.0,0.00037398,3]
[400382125,1767477032206,-300.0,0.00037398,3]
[400382126,1767477032217,-1600.0,0.00037398,3]
[400382127,1767477032226,-9841.3503795,0.00037399,2]
[400382128,1767477032239,-5256.8696205,0.00037399,2]
[400382129,1767477032248,-20374.12,0.00037399,10]
[400382130,1767477032258,-500.0,0.00037418,30]
[400382131,1767477032268,-500.0,0.00037418,120]
[400382132,1767477032278,-500.0,0.00037418,30]
[400382134,1767477032288,-500.0,0.00037418,120]
[400382136,1767477032298,-500.0,0.00037418,120]
[400382137,1767477032307,-4633.56,0.00037485,2]
[400382139,1767477032317,-151.0,0.00037559,14]
[400382140,1767477032327,-838.0,0.00037562,2]
[400382141,1767477032336,-350.32601348,0.00037563,2]
[400382143,1767477032346,-621.98,0.00037663,2]
[400382145,1767477032356,-166.66,0.00037797,30]
[400382147,1767477032365,-2262.64884135,0.00037877,2]
[400382149,1767477032375,-151.0,0.00037974,14]
[400382151,1767477032385,-196.34617641,0.00037977,7]
[400382153,1767477032396,-500.0,0.00037977,15]
[400382155,1767477032406,-500.0,0.00037977,15]
[400382157,1767477032416,-333.48516004,0.00037977,15]
[400382159,1767477032426,-500.0,0.00037977,15]
[400382161,1767477032435,-500.0,0.00037977,15]
[400382163,1767477032445,-500.0,0.00037977,15]
[400382165,1767477032455,-500.0,0.00037977,15]
[400382169,1767477032476,-500.0,0.00037977,15]
[400382171,1767477032487,-500.0,0.00037977,15]
[400382173,1767477032498,-500.0,0.00037977,15]
[400382175,1767477032508,-500.0,0.00037977,15]
[400382177,1767477032518,-500.0,0.00037977,15]
[400382179,1767477032528,-500.0,0.00037977,15]
[400382180,1767477032537,-500.0,0.00037977,15]
[400382181,1767477032548,-500.0,0.00037977,15]
[400382182,1767477032557,-500.0,0.00037977,15]
[400382183,1767477032568,-500.0,0.00037977,15]
[400382184,1767477032578,-500.0,0.00037977,15]
[400382185,1767477032588,-500.0,0.00037977,15]
[400382186,1767477032598,-500.0,0.00037977,15]
[400382187,1767477032608,-500.0,0.00037977,15]
[400382188,1767477032618,-500.0,0.00037977,15]
[400382189,1767477032628,-500.0,0.00037977,15]
[400382190,1767477032639,-500.0,0.00037977,15]
[400382191,1767477032649,-500.0,0.00037977,15]
[400382192,1767477032658,-500.0,0.00037977,15]
[400382194,1767477032668,-500.0,0.00037977,15]
[400382196,1767477032678,-500.0,0.00037977,15]
[400382198,1767477032688,-500.0,0.00037977,15]
[400382200,1767477032698,-500.0,0.00037977,15]
[400382202,1767477032708,-500.0,0.00037977,15]
[400382204,1767477032717,-500.0,0.00037977,15]
[400382206,1767477032727,-500.0,0.00037977,15]
[400382208,1767477032737,-500.0,0.00037977,15]
[400382210,1767477032747,-500.0,0.00037977,15]
[400382212,1767477032758,-500.0,0.00037977,15]
[400382214,1767477032768,-500.0,0.00037977,15]
[400382216,1767477032778,-500.0,0.00037977,15]
[400382218,1767477032787,-500.0,0.00037977,15]
[400382221,1767477032797,-500.0,0.00037977,15]
[400382222,1767477032807,-157.854056,0.00037977,15]
[400382225,1767477032822,-500.0,0.00037977,15]
[400382227,1767477032832,-500.0,0.00037977,15]
[400382229,1767477032842,-500.0,0.00037977,15]
[400382231,1767477032852,-500.0,0.00037977,15]
[400382233,1767477032863,-500.0,0.00037977,15]
[400382235,1767477032873,-500.0,0.00037977,15]
[400382237,1767477032883,-500.0,0.00037977,15]
[400382239,1767477032893,-500.0,0.00037977,15]
[400382241,1767477032903,-500.0,0.00037977,15]
[400382243,1767477032912,-500.0,0.00037977,15]
[400382245,1767477032923,-500.0,0.00037977,15]
[400382248,1767477032934,-500.0,0.00037977,15]
[400382250,1767477032943,-500.0,0.00037977,15]
[400382251,1767477032953,-500.0,0.00037977,15]
[400382254,1767477032963,-500.0,0.00037977,15]
[400382256,1767477032973,-500.0,0.00037977,15]
[400382258,1767477032984,-500.0,0.00037977,15]
[400382260,1767477032994,-500.0,0.00037977,15]
[400382262,1767477033005,-500.0,0.00037977,15]
[400382264,1767477033015,-500.0,0.00037977,15]
[400382266,1767477033025,-500.0,0.00037977,15]
[400382268,1767477033035,-500.0,0.00037977,15]
[400382270,1767477033046,-500.0,0.00037977,15]
[400382272,1767477033055,-500.0,0.00037977,15]
[400382274,1767477033066,-500.0,0.00037977,15]
[400382276,1767477033076,-500.0,0.00037977,15]
[400382278,1767477033086,-500.0,0.00037977,15]
[400382280,1767477033097,-500.0,0.00037977,15]
[400382282,1767477033111,-500.0,0.00037977,15]
[400382284,1767477033121,-500.0,0.00037977,15]
[400382286,1767477033131,-500.0,0.00037977,15]
[400382288,1767477033142,-500.0,0.00037977,15]
[400382290,1767477033152,-500.0,0.00037977,15]
[400382292,1767477033163,-500.0,0.00037977,15]
[400382294,1767477033176,-500.0,0.00037977,15]
[400382297,1767477033191,-500.0,0.00037977,15]
[400382299,1767477033201,-500.0,0.00037977,15]
[400382301,1767477033212,-500.0,0.00037977,15]
[400382303,1767477033222,-500.0,0.00037977,15]
[400382305,1767477033232,-406.42822844,0.00037977,15]
[400382307,1767477033243,-500.0,0.00037977,15]
[400382309,1767477033252,-500.0,0.00037977,15]
[400382311,1767477033262,-500.0,0.00037977,15]
[400382313,1767477033272,-500.0,0.00037977,15]
[400382315,1767477033283,-500.0,0.00037977,15]
[400382317,1767477033293,-500.0,0.00037977,15]
[400382319,1767477033304,-500.0,0.00037977,15]
[400382322,1767477033314,-500.0,0.00037977,15]
[400382324,1767477033324,-500.0,0.00037977,15]
[400382325,1767477033334,-500.0,0.00037977,15]
[400382327,1767477033344,-396.61759553,0.00037977,15]
[400382328,1767477033354,-500.0,0.00037977,15]
[400382329,1767477033363,-500.0,0.00037977,15]
[400382330,1767477033373,-500.0,0.00037977,15]
[400382331,1767477033385,-500.0,0.00037977,15]
[400382332,1767477033396,-500.0,0.00037977,15]
[400382333,1767477033406,-500.0,0.00037977,15]
[400382334,1767477033417,-500.0,0.00037977,15]
[400382335,1767477033426,-500.0,0.00037977,15]
[400382336,1767477033436,-500.0,0.00037977,15]
[400382337,1767477033447,-500.0,0.00037977,15]
[400382338,1767477033457,-500.0,0.00037977,15]
[400382339,1767477033467,-500.0,0.00037977,15]
[400382340,1767477033477,-500.0,0.00037977,15]
[400382341,1767477033487,-500.0,0.00037977,15]
[400382342,1767477033497,-500.0,0.00037977,15]
[400382343,1767477033507,-500.0,0.00037977,15]
[400382344,1767477033518,-194.97416415,0.00037977,15]
[400382345,1767477033533,-305.02583585,0.00037977,15]
[400382346,1767477033543,-500.0,0.00037977,15]
[400382347,1767477033554,-500.0,0.00037977,15]
[400382348,1767477033564,-500.0,0.00037977,15]
[400382349,1767477033574,-500.0,0.00037977,15]
[400382350,1767477033583,-500.0,0.00037977,15]